[Event "Catalan Youth Championship 2024"]
[Site "Cambrils"]
[Date "2024.03.25"]
[Round "4.11"]
[White "Tello Alvarez, Erik"]
[Black "Herman Gamazo, Isaac"]
[Result "1-0"]
[ECO "B30"]
[WhiteElo "1624"]
[BlackElo "2096"]
[Annotator "RC"]
[PlyCount "89"]
[EventDate "2024.03.13"]
[EventType "swiss"]
[EventCountry "ESP"]
[SourceTitle "playchess.com"]
[Source "ChessBase"]
[SourceQuality "1"]
[TimeControl "5400+30"]

1. e4 {[%emt 0:00:04]} c5 {[%emt 0:00:08]} 2. Nf3 {[%emt 0:00:12]} d6 {[%emt 0:00:12]} 3. c4 {[%emt 0:00:16]} e5 {[%emt 0:01:17]} 4. Nc3 {[%emt 0:00:34]} Nc6 {[%emt 0:00:11]} 5. Be2 {[%emt 0:00:46]} g6 {[%emt 1:31:12]} 6. a3 {[%emt 0:01:11]} Bg7 {[%emt 0:00:00]} 7. Rb1 {[%emt 0:01:20]} a5 {[%emt 0:00:00]} 8. d3 {[%emt 0:00:47]} Nge7 {[%emt 0:00:00]} 9. O-O {[%emt 0:01:05]} O-O {[%emt 0:00:00]} 10. Bd2 {[%emt 0:04:06]} f5 {[%emt 0:00:00]} 11. Nd5 {[%emt 0:04:22]} f4 {[%emt 0:00:00]} 12. b4 {[%emt 0:02:35]} axb4 {[%emt 0:00:00]} 13. axb4 {[%emt 0:00:20]} Nxd5 {[%emt 0:00:00]} 14. cxd5 {[%emt 0:00:37]} Nxb4 {[%emt 0:00:00]} 15. Bxb4 {[%emt 0:00:58]} cxb4 {[%emt 0:00:00]} 16. Rxb4 {[%emt 0:01:21]} g5 {[%emt 0:05:30]} 17. Nd2 {[%emt 0:09:39]} Ra2 {[%emt 0:00:00]} 18. Nc4 {[%emt 0:01:43]} Ra6 {[%emt 0:01:00]} 19. Bg4 {[%emt 0:03:46]} Rf6 {[%emt 0:00:00]} 20. Qe2 {[%emt 1:04:48]} Rf7 {[%emt 0:00:00]} 21. Rfb1 {[%emt 0:00:00]} Bf6 {[%emt 0:00:00]} 22. Rb6 {[%emt 0:01:00]} Rc7 {[%emt 0:00:00]} 23. Bxc8 {[%emt 0:00:00]} Qxc8 {[%emt 0:00:00]} 24. Rxa6 {[%emt 0:00:00]} bxa6 {[%emt 0:00:00]} 25. Nxd6 {[%emt 0:00:00]} Rc1+ {[%emt 0:00:00]} 26. Rxc1 {[%emt 0:00:00]} Qxc1+ {[%emt 0:00:00]} 27. Qf1 {[%emt 0:00:00]} Qc3 {[%emt 0:00:00]} 28. Qb1 {[%emt 0:00:00]} Bd8 {[%emt 0:00:00]} 29. h3 {[%emt 0:03:30]} Qc7 {[%emt 0:00:00]} 30. Nc4 {[%emt 0:00:00]} f3 {[%emt 0:00:00]} 31. g3 {[%emt 0:00:00]} Be7 {[%emt 0:00:00]} 32. Qa1 {[%emt 0:00:00]} Qb8 {[%emt 0:00:00]} 33. Nxe5 {[%emt 0:00:00]} Bd6 {[%emt 0:00:00]} 34. Nxf3 {[%emt 0:00:00]} Bxg3 {[%emt 0:00:00]} 35. e5 {[%emt 0:00:00]} Qf8 {[%emt 0:00:00]} 36. Kg2 {[%emt 0:00:00]} Bf4 {[%emt 0:00:00]} 37. Qxa6 {[%emt 0:00:00]} Qf5 {[%emt 0:00:00]} 38. Qe6+ {[%emt 0:00:00]} Qxe6 {[%emt 0:00:00]} 39. dxe6 {[%emt 0:00:00]} Kf8 {[%emt 0:00:00]} 40. d4 {[%emt 0:00:00]} Ke7 {[%emt 0:00:00]} 41. d5 {[%emt 0:00:00]} h5 {[%emt 0:00:00]} 42. Nd4 {[%emt 0:00:00]} g4 {[%emt 0:00:00]} 43. hxg4 {[%emt 0:07:00]} hxg4 {[%emt 0:00:00]} 44. Nc6+ {[%emt 0:00:00]} Ke8 {[%emt 0:00:00]} 45. d6 {[%emt 0:00:00]} 1-0

[Event "Catalan Youth Championship 2024"]
[Site "Cambrils"]
[Date "2024.03.25"]
[Round "4.12"]
[White "Alonso Gimenez, Mauro"]
[Black "Sergooris, Danail Jurgen"]
[Result "1/2-1/2"]
[ECO "B30"]
[WhiteElo "1980"]
[BlackElo "1870"]
[Annotator "RC"]
[PlyCount "77"]
[EventDate "2024.03.13"]
[EventType "swiss"]
[EventCountry "ESP"]
[SourceTitle "playchess.com"]
[Source "ChessBase"]
[SourceQuality "1"]
[TimeControl "5400+30"]

1. e4 {[%emt 0:00:02]} c5 {[%emt 0:00:01]} 2. Nc3 {[%emt 0:00:26]} Nc6 {[%emt 1:31:29]} 3. Bb5 {[%emt 0:00:08]} Nd4 {[%emt 0:00:00]} 4. Bc4 {[%emt 0:00:04]} e6 {[%emt 0:00:00]} 5. Nf3 {[%emt 1:32:20]} Nf6 {[%emt 0:00:00]} 6. O-O {[%emt 0:00:30]} a6 {[%emt 0:02:00]} 7. a4 {[%emt 0:00:00]} d5 {[%emt 0:00:00]} 8. exd5 {[%emt 0:00:00]} exd5 {[%emt 0:01:00]} 9. Be2 {[%emt 0:01:30]} Nc6 {[%emt 0:00:00]} 10. d4 {[%emt 0:00:00]} cxd4 {[%emt 0:00:00]} 11. Nxd4 {[%emt 0:01:00]} Be7 {[%emt 0:01:30]} 12. Bf3 {[%emt 0:00:30]} O-O {[%emt 0:00:00]} 13. Re1 {[%emt 0:00:30]} Nxd4 {[%emt 0:00:00]} 14. Qxd4 {[%emt 0:00:00]} Be6 {[%emt 0:01:30]} 15. Bg5 {[%emt 0:00:00]} Rc8 {[%emt 0:00:00]} 16. Rad1 {[%emt 0:01:30]} h6 {[%emt 0:00:00]} 17. Be3 {[%emt 0:00:00]} Qa5 {[%emt 0:00:00]} 18. Qd2 {[%emt 0:00:00]} Bb4 {[%emt 0:00:00]} 19. Bd4 {[%emt 0:01:30]} Ne4 {[%emt 0:00:00]} 20. Bxe4 {[%emt 0:00:00]} dxe4 {[%emt 0:00:00]} 21. Re3 {[%emt 0:00:00]} Bxc3 {[%emt 0:00:00]} 22. Bxc3 {[%emt 0:00:00]} Qg5 {[%emt 0:04:00]} 23. Rxe4 {[%emt 0:00:00]} Qxd2 {[%emt 0:00:00]} 24. Rxd2 {[%emt 0:00:00]} Rfd8 {[%emt 0:00:00]} 25. Red4 {[%emt 0:00:00]} Rxd4 {[%emt 0:00:00]} 26. Rxd4 {[%emt 0:00:00]} Rc4 {[%emt 0:00:00]} 27. Rd8+ {[%emt 0:00:00]} Kh7 {[%emt 0:00:00]} 28. a5 {[%emt 0:00:00]} Rc7 {[%emt 0:00:00]} 29. f3 {[%emt 0:00:00]} Rd7 {[%emt 0:00:00]} 30. Rb8 {[%emt 0:00:00]} Bf5 {[%emt 0:00:00]} 31. Kf2 {[%emt 0:00:00]} Bxc2 {[%emt 0:00:00]} 32. Ke3 {[%emt 0:00:00]} Ba4 {[%emt 0:00:00]} 33. Kf4 {[%emt 0:00:00]} Bc6 {[%emt 0:05:30]} 34. h4 {[%emt 0:07:30]} f6 {[%emt 0:00:30]} 35. Rc8 {[%emt 0:00:00]} Kg6 {[%emt 0:00:30]} 36. Kg4 {[%emt 0:01:00]} Rd4+ {[%emt 0:00:30]} 37. Kg3 {[%emt 0:00:00]} Rd7 {[%emt 0:00:00]} 38. Kf4 {[%emt 0:00:00]} Bb5 39. Ke4 {[%emt 0:01:30]} 1/2-1/2

[Event "Catalan Youth Championship 2024"]
[Site "Cambrils"]
[Date "2024.03.25"]
[Round "4.13"]
[White "Salinas Tomas, Daniel"]
[Black "Torrent San Nicolas, Biel"]
[Result "1-0"]
[ECO "E68"]
[WhiteElo "2386"]
[BlackElo "1966"]
[Annotator "RC"]
[PlyCount "89"]
[EventDate "2024.03.13"]
[EventType "swiss"]
[EventCountry "ESP"]
[SourceTitle "playchess.com"]
[Source "ChessBase"]
[SourceQuality "1"]
[TimeControl "5400+30"]

1. d4 {[%emt 0:00:05]} Nf6 {[%emt 0:00:15]} 2. c4 {[%emt 0:00:11]} g6 {[%emt 0:00:16]} 3. g3 {[%emt 0:00:08]} Bg7 {[%emt 0:00:11]} 4. Bg2 {[%emt 0:00:13]} O-O {[%emt 0:00:15]} 5. Nc3 {[%emt 0:00:12]} d6 {[%emt 0:02:39]} 6. Nf3 {[%emt 0:00:08]} Nbd7 {[%emt 0:00:51]} 7. O-O {[%emt 0:00:24]} e5 {[%emt 0:00:25]} 8. e4 {[%emt 0:01:27]} exd4 {[%emt 0:00:27]} 9. Nxd4 {[%emt 0:00:15]} Re8 {[%emt 0:00:43]} 10. h3 {[%emt 1:32:27]} h6 {[%emt 0:03:01]} 11. Re1 {[%emt 0:00:00]} Nc5 {[%emt 0:06:25]} 12. b3 {[%emt 0:00:00]} c6 {[%emt 0:13:31]} 13. Bb2 {[%emt 0:00:00]} Qa5 {[%emt 0:04:53]} 14. Qd2 {[%emt 0:00:00]} Ne6 {[%emt 0:11:14]} 15. Nxe6 {[%emt 0:00:00]} Bxe6 {[%emt 0:00:35]} 16. Rad1 {[%emt 0:00:00]} Rad8 {[%emt 0:03:45]} 17. Re3 {[%emt 0:00:00]} a6 {[%emt 0:06:44]} 18. Rd3 {[%emt 0:00:00]} Rd7 {[%emt 0:01:01]} 19. Ne2 {[%emt 0:00:00]} Qxd2 {[%emt 0:02:29]} 20. R3xd2 {[%emt 0:00:00]} Red8 {[%emt 0:09:13]} 21. Bc3 {[%emt 0:00:00]} Ne8 {[%emt 0:05:14]} 22. Ba5 {[%emt 0:00:00]} Rc8 {[%emt 0:00:27]} 23. c5 {[%emt 0:00:00]} d5 {[%emt 0:03:49]} 24. exd5 {[%emt 0:00:00]} cxd5 {[%emt 0:00:27]} 25. b4 {[%emt 0:00:00]} Nf6 {[%emt 0:02:36]} 26. Nf4 {[%emt 0:08:00]} Re8 {[%emt 0:05:31]} 27. Bxd5 {[%emt 0:00:00]} Nxd5 {[%emt 0:02:29]} 28. Nxd5 {[%emt 0:00:00]} Bxd5 {[%emt 0:02:40]} 29. Rxd5 {[%emt 0:00:00]} Rxd5 {[%emt 0:00:07]} 30. Rxd5 {[%emt 0:00:00]} Re7 {[%emt 0:00:40]} 31. Rd8+ {[%emt 0:00:00]} Kh7 {[%emt 0:00:18]} 32. Rd3 {[%emt 0:00:00]} h5 {[%emt 0:01:25]} 33. a4 {[%emt 0:00:00]} Be5 {[%emt 0:12:24]} 34. Bd8 {[%emt 0:00:00]} Re8 {[%emt 0:00:00]} 35. Rd7 {[%emt 0:00:00]} Bc3 {[%emt 0:00:00]} 36. Ba5 {[%emt 0:00:00]} Rb8 {[%emt 0:00:00]} 37. Rxf7+ {[%emt 0:00:00]} Kg8 {[%emt 0:00:00]} 38. Rd7 {[%emt 0:00:00]} Kf8 {[%emt 0:00:00]} 39. Rd3 {[%emt 0:00:00]} Bf6 {[%emt 0:00:00]} 40. Kg2 {[%emt 0:00:00]} Ke8 {[%emt 0:00:00]} 41. f4 {[%emt 0:00:00]} Kf7 {[%emt 0:00:00]} 42. Kf3 {[%emt 0:00:00]} Ke6 {[%emt 0:00:00]} 43. Ke4 {[%emt 0:00:00]} Rc8 {[%emt 0:00:00]} 44. Rd6+ {[%emt 0:00:00]} Ke7 {[%emt 0:00:00]} 45. Rb6 {[%emt 0:00:00]} 1-0

[Event "Catalan Youth Championship 2024"]
[Site "Cambrils"]
[Date "2024.03.25"]
[Round "4.14"]
[White "Anguera Staina, Maxim"]
[Black "Sviridenko, Yaroslav"]
[Result "1/2-1/2"]
[ECO "A22"]
[WhiteElo "2020"]
[BlackElo "1961"]
[Annotator "RC"]
[PlyCount "87"]
[EventDate "2024.03.13"]
[EventType "swiss"]
[EventCountry "ESP"]
[SourceTitle "playchess.com"]
[Source "ChessBase"]
[SourceQuality "1"]
[TimeControl "5400+30"]

1. c4 {[%emt 0:02:24]} e5 {[%emt 0:00:30]} 2. Nc3 {[%emt 0:00:10]} Bb4 {[%emt 0:00:11]} 3. g3 {[%emt 0:04:28]} Nf6 {[%emt 0:00:11]} 4. Bg2 {[%emt 0:00:21]} O-O {[%emt 0:01:26]} 5. e4 {[%emt 0:02:17]} Bxc3 {[%emt 0:05:44]} 6. bxc3 {[%emt 0:01:28]} Re8 {[%emt 0:01:11]} 7. Ne2 {[%emt 0:00:27]} c6 {[%emt 0:00:20]} 8. Qb3 {[%emt 0:07:14]} Na6 {[%emt 0:02:39]} 9. O-O {[%emt 0:00:25]} Nc5 {[%emt 0:00:59]} 10. Qc2 {[%emt 1:16:16]} d6 {[%emt 0:07:53]} 11. Rb1 {[%emt 0:00:30]} Qc7 {[%emt 1:14:56]} 12. d3 {[%emt 0:00:00]} Bg4 {[%emt 0:00:00]} 13. f3 {[%emt 0:01:00]} Bh5 {[%emt 0:00:00]} 14. Bg5 {[%emt 0:00:00]} Ncd7 {[%emt 0:01:30]} 15. Be3 {[%emt 0:01:00]} Rad8 {[%emt 0:00:30]} 16. Bf2 {[%emt 0:00:30]} b6 {[%emt 0:00:30]} 17. Rfd1 {[%emt 0:00:30]} h6 {[%emt 0:00:00]} 18. h3 {[%emt 0:00:00]} d5 {[%emt 0:00:00]} 19. cxd5 {[%emt 0:00:00]} cxd5 {[%emt 0:00:00]} 20. c4 {[%emt 0:01:30]} dxc4 {[%emt 0:00:00]} 21. Rb4 {[%emt 0:00:00]} Nf8 {[%emt 0:00:00]} 22. Rxc4 {[%emt 0:00:00]} Qb8 {[%emt 0:03:00]} 23. g4 {[%emt 0:00:00]} Bg6 {[%emt 0:00:00]} 24. Bg3 {[%emt 0:00:00]} N6d7 {[%emt 0:00:00]} 25. Rc1 {[%emt 0:00:00]} Ne6 {[%emt 0:00:00]} 26. d4 {[%emt 0:00:00]} f6 {[%emt 0:00:00]} 27. Bf1 {[%emt 0:00:00]} Qb7 {[%emt 0:00:00]} 28. d5 {[%emt 0:00:00]} Nec5 {[%emt 0:00:00]} 29. Rb1 {[%emt 0:00:00]} Qc7 {[%emt 0:00:00]} 30. Nd4 {[%emt 0:05:00]} Rc8 {[%emt 0:00:00]} 31. Rc3 {[%emt 0:00:00]} exd4 {[%emt 0:00:00]} 32. Bxc7 {[%emt 0:00:00]} dxc3 {[%emt 0:00:00]} 33. Bg3 {[%emt 0:00:00]} Ne5 {[%emt 0:00:00]} 34. Bxe5 {[%emt 0:00:00]} fxe5 {[%emt 0:00:00]} 35. Bb5 {[%emt 0:00:00]} Rf8 {[%emt 0:00:11]} 36. Rf1 {[%emt 0:00:00]} Rfd8 {[%emt 0:06:49]} 37. Rc1 {[%emt 0:00:00]} a6 {[%emt 0:00:00]} 38. Bc6 {[%emt 0:00:00]} Ne6 {[%emt 0:01:00]} 39. Qxc3 {[%emt 0:00:00]} Nd4 {[%emt 0:00:00]} 40. Qa3 {[%emt 0:00:00]} Ne2+ {[%emt 0:00:00]} 41. Kg2 {[%emt 0:00:00]} Nxc1 {[%emt 0:00:00]} 42. Qxc1 {[%emt 0:00:00]} Be8 {[%emt 0:00:00]} 43. Qa3 {[%emt 0:00:00]} Bxc6 {[%emt 0:00:00]} 44. dxc6 {[%emt 0:00:00]} 1/2-1/2

[Event "Catalan Youth Championship 2024"]
[Site "Cambrils"]
[Date "2024.03.25"]
[Round "4.15"]
[White "Fernandez Climent, Albert"]
[Black "Bergaretxe Gavalda, Unai"]
[Result "1-0"]
[ECO "B07"]
[WhiteElo "1978"]
[BlackElo "1921"]
[Annotator "RC"]
[PlyCount "115"]
[EventDate "2024.03.13"]
[EventType "swiss"]
[EventCountry "ESP"]
[SourceTitle "playchess.com"]
[Source "ChessBase"]
[SourceQuality "1"]
[TimeControl "5400+30"]

1. d4 {[%emt 0:00:03]} Nf6 {[%emt 0:00:10]} 2. Nc3 {[%emt 0:00:39]} d6 {[%emt 0:02:47]} 3. e4 {[%emt 0:01:06]} e5 {[%emt 0:00:17]} 4. dxe5 {[%emt 0:01:25]} dxe5 {[%emt 0:00:07]} 5. Qxd8+ {[%emt 0:00:05]} Kxd8 {[%emt 0:00:04]} 6. Bg5 {[%emt 0:04:00]} c6 {[%emt 0:02:18]} 7. O-O-O+ {[%emt 0:09:49]} Kc7 {[%emt 0:00:08]} 8. Bc4 {[%emt 0:00:07]} Be6 {[%emt 0:00:41]} 9. Bxe6 {[%emt 0:00:04]} fxe6 {[%emt 0:00:04]} 10. f3 {[%emt 0:01:54]} Nbd7 {[%emt 0:00:25]} 11. Nge2 {[%emt 0:07:13]} b5 {[%emt 0:00:24]} 12. Be3 {[%emt 0:18:55]} Bc5 {[%emt 0:00:50]} 13. Bxc5 {[%emt 0:02:06]} Nxc5 {[%emt 0:00:24]} 14. Rd2 {[%emt 0:00:30]} g5 {[%emt 0:01:53]} 15. Kb1 {[%emt 0:12:40]} Rad8 {[%emt 0:05:30]} 16. Rhd1 {[%emt 0:01:14]} Rxd2 {[%emt 0:00:23]} 17. Rxd2 {[%emt 0:00:04]} h5 {[%emt 0:00:40]} 18. Nc1 {[%emt 0:01:23]} h4 {[%emt 0:02:10]} 19. h3 {[%emt 0:00:05]} Nh5 {[%emt 0:01:41]} 20. b4 {[%emt 0:07:00]} Nd7 {[%emt 0:01:41]} 21. Nd3 {[%emt 0:00:10]} Nf4 {[%emt 0:00:44]} 22. Nd1 {[%emt 0:01:12]} Nxd3 {[%emt 0:03:19]} 23. Rxd3 {[%emt 0:00:45]} Nb6 {[%emt 0:00:21]} 24. Ne3 {[%emt 0:00:26]} Rd8 {[%emt 0:07:05]} 25. Rxd8 {[%emt 0:00:47]} Kxd8 {[%emt 0:00:07]} 26. Kb2 {[%emt 0:00:47]} Ke7 {[%emt 0:01:35]} 27. Kb3 {[%emt 0:00:11]} Nd7 {[%emt 0:07:02]} 28. Ng4 {[%emt 0:02:12]} Kd6 {[%emt 0:00:08]} 29. c4 {[%emt 0:02:14]} Ke7 {[%emt 0:00:50]} 30. a4 {[%emt 0:01:15]} a6 {[%emt 0:00:24]} 31. Nf2 {[%emt 0:04:45]} Nb6 {[%emt 0:00:52]} 32. axb5 {[%emt 0:03:07]} axb5 {[%emt 0:00:08]} 33. c5 {[%emt 0:01:14]} Nc4 {[%emt 0:00:04]} 34. Ng4 {[%emt 0:00:03]} Kf7 {[%emt 0:00:45]} 35. Kc3 {[%emt 0:01:57]} Kg6 {[%emt 0:00:07]} 36. Kd3 {[%emt 0:00:18]} Kf7 {[%emt 0:00:53]} 37. Ke2 {[%emt 0:03:24]} Kg7 {[%emt 0:00:07]} 38. Nf2 {[%emt 0:00:53]} Kf6 {[%emt 0:01:58]} 39. Nd3 {[%emt 0:00:16]} Kg6 {[%emt 0:01:33]} 40. Nc1 {[%emt 0:01:50]} Kf6 {[%emt 0:03:04]} 41. Kd3 {[%emt 0:01:52]} Nb2+ {[%emt 0:00:32]} 42. Ke2 {[%emt 0:00:13]} Nc4 {[%emt 0:00:06]} 43. Kf2 {[%emt 0:01:43]} Kg6 {[%emt 0:00:48]} 44. Nb3 {[%emt 0:00:29]} Kf6 {[%emt 0:03:22]} 45. Na5 {[%emt 0:00:13]} Na3 {[%emt 0:02:39]} 46. Nxc6 {[%emt 0:00:52]} Nc2 {[%emt 0:00:25]} 47. Kf1 {[%emt 0:05:38]} Nd4 {[%emt 0:00:26]} 48. Nxd4 {[%emt 0:02:24]} exd4 {[%emt 0:00:03]} 49. c6 {[%emt 0:00:12]} Ke7 {[%emt 0:00:08]} 50. e5 {[%emt 0:00:02]} Kd8 {[%emt 0:00:30]} 51. Ke2 {[%emt 0:00:27]} d3+ {[%emt 0:00:43]} 52. Kxd3 {[%emt 0:00:30]} Kc7 {[%emt 0:00:02]} 53. Kd4 {[%emt 0:00:16]} Kxc6 {[%emt 0:00:06]} 54. Ke4 {[%emt 0:00:08]} Kd7 {[%emt 0:00:20]} 55. f4 {[%emt 0:00:32]} gxf4 {[%emt 0:00:04]} 56. Kxf4 {[%emt 0:00:04]} Kc6 {[%emt 0:00:04]} 57. Kg5 {[%emt 0:00:52]} Kd5 {[%emt 0:00:10]} 58. Kf6 {[%emt 0:00:04]} 1-0

[Event "Catalan Youth Championship 2024"]
[Site "Cambrils"]
[Date "2024.03.25"]
[Round "4.16"]
[White "Blasco Cardona, Pol"]
[Black "Clotet Mas, Dan"]
[Result "0-1"]
[ECO "D00"]
[WhiteElo "1966"]
[BlackElo "2028"]
[Annotator "RC"]
[PlyCount "56"]
[EventDate "2024.03.13"]
[EventType "swiss"]
[EventCountry "ESP"]
[SourceTitle "playchess.com"]
[Source "ChessBase"]
[SourceQuality "1"]
[TimeControl "5400+30"]

1. d4 {[%emt 0:00:03]} d5 {[%emt 0:00:04]} 2. Nc3 {[%emt 0:00:06]} Nf6 {[%emt 0:00:04]} 3. Bf4 {[%emt 0:00:05]} c5 {[%emt 0:00:05]} 4. e4 {[%emt 0:00:06]} cxd4 {[%emt 0:00:11]} 5. Qxd4 {[%emt 0:00:10]} Nc6 {[%emt 0:00:08]} 6. Bb5 {[%emt 0:00:06]} Bd7 {[%emt 0:00:04]} 7. Bxc6 {[%emt 0:00:08]} Bxc6 {[%emt 0:00:04]} 8. e5 {[%emt 0:00:07]} Nd7 {[%emt 0:00:03]} 9. e6 {[%emt 0:00:34]} fxe6 {[%emt 0:00:03]} 10. Nf3 {[%emt 0:00:06]} Qb6 {[%emt 0:00:05]} 11. Ne2 {[%emt 0:00:42]} Qxd4 {[%emt 0:00:06]} 12. Nexd4 {[%emt 0:00:44]} g5 {[%emt 1:35:33]} 13. Bg3 {[%emt 0:26:17]} g4 {[%emt 0:00:00]} 14. Ng5 {[%emt 0:20:33]} e5 {[%emt 0:00:00]} 15. Nde6 {[%emt 0:02:22]} Rc8 {[%emt 0:00:00]} 16. h3 {[%emt 0:05:39]} gxh3 {[%emt 0:00:00]} 17. Rxh3 {[%emt 0:00:50]} h6 {[%emt 0:00:00]} 18. O-O-O {[%emt 0:08:45]} d4 {[%emt 0:00:00]} 19. Re1 {[%emt 0:09:20]} Bxg2 {[%emt 0:00:00]} 20. Rh2 {[%emt 0:00:29]} Bd5 {[%emt 0:00:00]} 21. Bxe5 {[%emt 0:01:33]} Nxe5 {[%emt 0:00:00]} 22. Rxe5 {[%emt 0:01:02]} Bxa2 {[%emt 0:00:00]} 23. Ra5 {[%emt 0:00:39]} hxg5 {[%emt 0:00:00]} 24. Rxh8 {[%emt 0:00:07]} Bxe6 {[%emt 0:00:00]} 25. Rxa7 {[%emt 0:00:11]} Bd5 {[%emt 0:00:00]} 26. Kd2 {[%emt 0:00:24]} Kf7 {[%emt 0:00:00]} 27. Kd3 {[%emt 0:00:25]} Bc4+ {[%emt 0:00:00]} 28. Ke4 {[%emt 0:22:57]} Ba6 {[%emt 0:00:00]} 0-1

[Event "Catalan Youth Championship 2024"]
[Site "Cambrils"]
[Date "2024.03.25"]
[Round "4.17"]
[White "Funes Ostos, Aitor"]
[Black "Ano Pla, Gerard"]
[Result "1/2-1/2"]
[ECO "A25"]
[WhiteElo "2125"]
[BlackElo "2230"]
[Annotator "RC"]
[PlyCount "176"]
[EventDate "2024.03.13"]
[EventType "swiss"]
[EventCountry "ESP"]
[SourceTitle "playchess.com"]
[Source "ChessBase"]
[SourceQuality "1"]
[TimeControl "5400+30"]

1. c4 {[%emt 0:00:04]} e5 {[%emt 0:00:15]} 2. Nc3 {[%emt 0:00:07]} d6 {[%emt 0:00:04]} 3. e3 {[%emt 0:00:14]} g6 {[%emt 0:00:15]} 4. d4 {[%emt 0:00:10]} Nc6 {[%emt 0:00:11]} 5. Nf3 {[%emt 0:01:26]} Bg7 {[%emt 0:00:22]} 6. Be2 {[%emt 0:00:42]} Nge7 {[%emt 0:04:35]} 7. d5 {[%emt 0:08:29]} Nb8 {[%emt 0:00:15]} 8. h4 {[%emt 0:00:08]} h6 {[%emt 0:03:49]} 9. e4 {[%emt 0:03:46]} O-O {[%emt 0:11:41]} 10. h5 {[%emt 0:08:30]} g5 {[%emt 0:01:07]} 11. Be3 {[%emt 0:02:30]} f5 {[%emt 0:05:11]} 12. exf5 {[%emt 0:00:09]} Nxf5 {[%emt 0:02:38]} 13. Bd2 {[%emt 1:10:45]} Nd4 {[%emt 0:11:01]} 14. Nxd4 {[%emt 0:00:00]} exd4 {[%emt 0:00:02]} 15. Ne4 {[%emt 0:01:00]} Bf5 {[%emt 0:56:34]} 16. Ng3 {[%emt 0:00:30]} d3 {[%emt 0:00:00]} 17. Nxf5 {[%emt 0:00:30]} dxe2 {[%emt 0:00:00]} 18. Qc2 {[%emt 0:00:00]} Qf6 {[%emt 0:00:00]} 19. g4 {[%emt 0:00:00]} Nd7 {[%emt 0:00:00]} 20. Bc3 {[%emt 0:00:00]} Ne5 {[%emt 0:00:00]} 21. Qxe2 {[%emt 0:00:00]} Rae8 {[%emt 0:00:00]} 22. O-O-O {[%emt 0:00:00]} Nxg4 {[%emt 0:00:00]} 23. Qxe8 {[%emt 0:00:00]} Qxf5 {[%emt 0:00:00]} 24. Qe2 {[%emt 0:00:00]} Bxc3 {[%emt 0:00:00]} 25. bxc3 {[%emt 0:00:00]} Ne5 {[%emt 0:00:00]} 26. Rhf1 {[%emt 0:00:00]} Qh3 {[%emt 0:05:30]} 27. Qc2 {[%emt 0:00:00]} Rf3 {[%emt 0:00:00]} 28. Rh1 {[%emt 0:00:00]} Qg4 {[%emt 0:00:00]} 29. Rhe1 {[%emt 0:00:00]} Qf4+ {[%emt 0:00:00]} 30. Kb1 {[%emt 0:00:00]} Rxf2 {[%emt 0:00:00]} 31. Re2 {[%emt 0:00:00]} Rf1 {[%emt 0:00:00]} 32. Rxf1 {[%emt 0:00:00]} Qxf1+ {[%emt 0:03:00]} 33. Kb2 Qf7 {[%emt 0:00:00]} 34. Qe4 {[%emt 0:00:00]} Qxh5 {[%emt 0:00:00]} 35. c5 {[%emt 0:00:00]} Qf7 {[%emt 0:00:00]} 36. cxd6 {[%emt 0:00:00]} cxd6 {[%emt 0:00:00]} 37. Qd4 {[%emt 0:02:02]} Qg7 {[%emt 0:00:00]} 38. Qxa7 {[%emt 0:01:06]} g4 {[%emt 0:00:00]} 39. Kb3 {[%emt 0:03:10]} Qc7 {[%emt 0:00:00]} 40. Qd4 {[%emt 0:00:40]} h5 {[%emt 0:00:00]} 41. c4 {[%emt 0:02:04]} b6 {[%emt 0:00:00]} 42. Rxe5 {[%emt 0:01:41]} dxe5 {[%emt 0:00:00]} 43. d6 {[%emt 0:00:01]} Qd7 {[%emt 0:03:11]} 44. Qxe5 {[%emt 0:01:04]} h4 {[%emt 0:00:01]} 45. Qg5+ {[%emt 0:00:40]} Kf7 {[%emt 0:00:12]} 46. Qh5+ {[%emt 0:00:29]} Ke6 {[%emt 0:01:07]} 47. Qxg4+ {[%emt 0:00:37]} Kxd6 {[%emt 0:00:01]} 48. Qxh4 {[%emt 0:00:01]} Qf5 {[%emt 0:00:20]} 49. Qh6+ {[%emt 0:00:21]} Kc5 {[%emt 0:00:38]} 50. Qe3+ {[%emt 0:00:17]} Kc6 {[%emt 0:00:06]} 51. Qe8+ {[%emt 0:00:35]} Kc7 {[%emt 0:03:54]} 52. Qe7+ {[%emt 0:00:34]} Kc6 {[%emt 0:00:00]} 53. Qe2 {[%emt 0:00:53]} Qb1+ {[%emt 0:00:00]} 54. Ka3 {[%emt 0:00:17]} Qc1+ {[%emt 0:00:00]} 55. Kb3 {[%emt 0:00:18]} Qb1+ {[%emt 0:00:00]} 56. Qb2 {[%emt 0:00:11]} Qd3+ {[%emt 0:02:30]} 57. Kb4 {[%emt 0:00:21]} Qd6+ {[%emt 0:00:00]} 58. Ka4 {[%emt 0:00:09]} Kb7 {[%emt 0:00:00]} 59. Qg7+ {[%emt 0:00:14]} Ka6 {[%emt 0:00:00]} 60. Qb2 {[%emt 0:00:25]} Kb7 {[%emt 0:00:00]} 61. Qg2+ {[%emt 0:00:02]} Ka7 {[%emt 0:00:00]} 62. Qd5 {[%emt 0:00:13]} Qc7 {[%emt 0:00:00]} 63. Kb5 {[%emt 0:00:26]} Qe7 {[%emt 0:00:05]} 64. Kc6 {[%emt 0:01:40]} Qb7+ {[%emt 0:00:13]} 65. Kd6 {[%emt 0:00:08]} Qg7 {[%emt 0:04:12]} 66. Qe5 {[%emt 0:03:51]} Qg8 {[%emt 0:00:00]} 67. Qe6 {[%emt 0:00:00]} Qg3+ {[%emt 0:00:00]} 68. Kc6 {[%emt 0:00:00]} Qf3+ {[%emt 0:00:00]} 69. Qd5 {[%emt 0:00:00]} Qf6+ {[%emt 0:02:00]} 70. Kc7 {[%emt 0:02:00]} Qf4+ {[%emt 0:00:00]} 71. Kc8 {[%emt 0:00:00]} Qb8+ {[%emt 0:00:00]} 72. Kd7 {[%emt 0:00:00]} Qf8 {[%emt 0:00:15]} 73. Kc6 {[%emt 0:00:41]} Qc8+ {[%emt 0:01:45]} 74. Kd6 {[%emt 0:00:13]} Qd8+ {[%emt 0:00:00]} 75. Kc6 {[%emt 0:00:25]} Qc8+ {[%emt 0:00:00]} 76. Kb5 {[%emt 0:00:04]} Qc7 {[%emt 0:00:00]} 77. a4 {[%emt 0:00:32]} Qe7 {[%emt 0:00:00]} 78. Kc6 {[%emt 0:01:01]} Qf6+ {[%emt 0:00:30]} 79. Kc7 {[%emt 0:00:41]} Qf4+ {[%emt 0:00:08]} 80. Kc8 {[%emt 0:01:23]} Qb8+ {[%emt 0:00:43]} 81. Kd7 {[%emt 0:00:30]} Qf8 {[%emt 0:00:15]} 82. Qe6 {[%emt 0:00:00]} Qc5 {[%emt 0:00:31]} 83. Kd8 {[%emt 0:00:00]} Kb8 {[%emt 0:02:53]} 84. Ke8 {[%emt 0:00:38]} Qf2 {[%emt 0:00:00]} 85. Qe5+ {[%emt 0:00:18]} Kb7 {[%emt 0:01:00]} 86. Qd5+ {[%emt 0:00:28]} Kc7 {[%emt 0:00:30]} 87. Qd7+ {[%emt 0:00:55]} Kb8 {[%emt 0:00:00]} 88. Qd6+ {[%emt 0:00:19]} Kc8 {[%emt 0:00:00]} 1/2-1/2